fUSD/lending_fUSD_20250209
["ID","MTS","AMOUNT","RATE_DAILY","PERIOD"]
[352396462,1739077838015,-500.0,8.835e-05,2]
[352396464,1739077838024,-500.0,8.835e-05,2]
[352396466,1739077838034,-500.0,8.835e-05,2]
[352396468,1739077838043,-500.0,8.835e-05,2]
[352396470,1739077838052,-500.0,8.835e-05,2]
[352396472,1739077838062,-500.0,8.835e-05,2]
[352396474,1739077838072,-1000.0,8.835e-05,2]
[352396476,1739077838085,-522.91,8.835e-05,2]
[352396478,1739077838094,-199.24593026,8.835e-05,2]
[352396481,1739077838107,-481.50406974,8.835e-05,2]
[352396483,1739077838116,-350.74593026,8.835e-05,2]
[352396485,1739077838127,-149.25406974,8.835e-05,2]
[352396487,1739077838136,-500.0,8.835e-05,2]
[352396489,1739077838145,-500.0,8.835e-05,2]
[352396491,1739077838154,-500.0,8.835e-05,2]
[352396493,1739077838164,-567.77279565,8.835e-05,2]
[352396495,1739077838174,-500.0,8.835e-05,2]
[352396497,1739077838184,-500.0,8.835e-05,2]
[352396499,1739077838193,-548.68,8.835e-05,2]
[352396501,1739077838202,-500.0,8.835e-05,2]
[352396503,1739077838212,-500.0,8.835e-05,2]
[352396505,1739077838231,-500.0,8.835e-05,2]
[352396507,1739077838240,-842.99,8.835e-05,2]
[352396509,1739077838249,-500.0,8.835e-05,2]
[352396511,1739077838259,-500.0,8.835e-05,2]
[352396513,1739077838269,-399.43139611,8.835e-05,2]
[352396515,1739077838278,-500.0,8.835e-05,2]
[352396517,1739077838287,-234.81259958,8.835e-05,2]
[352396519,1739077838296,-500.0,8.835e-05,2]
[352396521,1739077838305,-500.0,8.835e-05,2]
[352396523,1739077838314,-500.0,8.835e-05,2]
[352396525,1739077838323,-500.0,8.835e-05,2]
[352396527,1739077838332,-172.73881674,8.835e-05,2]
[352396528,1739077838342,-288.35574828,8.835e-05,2]
[352396531,1739077838353,-211.64425172,8.835e-05,2]
[352396533,1739077838363,-500.0,8.835e-05,2]
[352396535,1739077838372,-500.0,8.835e-05,2]
[352396537,1739077838381,-500.0,8.835e-05,2]
[352396539,1739077838390,-59.63974833,8.835e-05,2]
[352396542,1739077838409,-440.36025167,8.835e-05,2]
[352396544,1739077838418,-500.0,8.835e-05,2]
[352396546,1739077838428,-285.36126179,8.835e-05,2]
[352396548,1739077838438,-500.0,8.835e-05,2]
[352396550,1739077838447,-500.0,8.835e-05,2]
[352396552,1739077838456,-500.0,8.835e-05,2]
[352396554,1739077838466,-500.0,8.835e-05,2]
[352396556,1739077838475,-500.0,8.835e-05,2]
[352396558,1739077838485,-500.0,8.835e-05,2]
[352396560,1739077838494,-500.0,8.835e-05,2]
[352396562,1739077838503,-500.0,8.835e-05,2]
[352396564,1739077838512,-283.19897707,8.835e-05,2]
[352396566,1739077838524,-245.47572783,8.835e-05,2]
[352396568,1739077838534,-500.0,8.835e-05,2]
[352396570,1739077838543,-500.0,8.835e-05,2]
[352396572,1739077838552,-500.0,8.835e-05,2]
[352396574,1739077838561,-260.77404746,8.835e-05,2]
[352396576,1739077838573,-239.22595254,8.835e-05,2]
[352396578,1739077838582,-500.0,8.835e-05,2]
[352396580,1739077838592,-502.96919028,8.835e-05,2]
[352396582,1739077838601,-500.0,8.835e-05,2]
[352396584,1739077838610,-500.0,8.835e-05,2]
[352396586,1739077838620,-444.51911915,8.835e-05,2]
[352396588,1739077838628,-500.0,8.835e-05,2]
[352396590,1739077838638,-77.42334542,8.835e-05,2]
[352396591,1739077838650,-422.57665458,8.835e-05,2]
[352396592,1739077838659,-500.0,8.835e-05,2]
[352396593,1739077838668,-500.0,8.835e-05,2]
[352396594,1739077838681,-500.0,8.835e-05,2]
[352396595,1739077838691,-500.0,8.835e-05,2]
[352396596,1739077838700,-500.0,8.835e-05,2]
[352396597,1739077838710,-500.0,8.835e-05,2]
[352396598,1739077838719,-500.0,8.835e-05,2]
[352396599,1739077838728,-500.0,8.835e-05,2]
[352396600,1739077838737,-500.0,8.835e-05,2]
[352396601,1739077838746,-500.0,8.835e-05,2]
[352396602,1739077838755,-500.0,8.835e-05,2]
[352396603,1739077838764,-500.0,8.835e-05,2]
[352396604,1739077838774,-500.0,8.835e-05,2]
[352396605,1739077838784,-500.0,8.835e-05,2]
[352396606,1739077838795,-500.0,8.835e-05,2]
[352396607,1739077838805,-500.0,8.835e-05,2]
[352396608,1739077838815,-500.0,8.835e-05,2]
[352396609,1739077838825,-500.0,8.835e-05,2]
[352396610,1739077838835,-500.0,8.835e-05,2]
[352396611,1739077838845,-500.0,8.835e-05,2]
[352396612,1739077838856,-500.0,8.835e-05,2]
[352396613,1739077838865,-500.0,8.835e-05,2]
[352396614,1739077838875,-500.0,8.835e-05,2]
[352396615,1739077838885,-500.0,8.835e-05,2]
[352396616,1739077838894,-500.0,8.835e-05,2]
[352396617,1739077838903,-500.0,8.835e-05,2]
[352396618,1739077838913,-500.0,8.835e-05,2]
[352396619,1739077838924,-1035.91,8.835e-05,2]
[352396620,1739077838936,-14330.9898756,8.836e-05,2]
[352396621,1739077838947,-622.7692827,8.836e-05,2]
[352396625,1739077839401,-625.34,8.836e-05,2]
[352396626,1739077839524,-10506.26849954,8.836e-05,2]
[352396627,1739077839536,-19999.70024216,8.836e-05,2]
[352396628,1739077839547,-19567.71135784,8.836e-05,2]
[352396629,1739077839642,-6564.30628688,8.836e-05,2]
[352396630,1739077839654,-3166.74985528,8.836e-05,2]
[352396631,1739077839664,-10478.6441,8.836e-05,2]
[352396632,1739077839674,-355.5267,8.836e-05,2]
[352396633,1739077839685,-2234.1254,8.836e-05,2]
[352396634,1739077839694,-73996.0225,8.836e-05,2]
[352396635,1739077839704,-1580.1006,8.836e-05,2]
[352396636,1739077839714,-7207.5864,8.836e-05,2]
[352396637,1739077839723,-238.1,8.972e-05,2]
[352396638,1739077839733,-392.98,8.972e-05,2]
[352396639,1739077839742,-500.0,8.972e-05,2]
[352396640,1739077839751,-521.9,8.972e-05,2]
[352396641,1739077839761,-500.0,8.972e-05,2]
[352396642,1739077839770,-500.0,8.972e-05,2]
[352396643,1739077839779,-500.0,8.972e-05,2]
[352396644,1739077839789,-500.0,8.972e-05,2]
[352396645,1739077839799,-500.0,8.972e-05,2]
[352396646,1739077839808,-500.0,8.972e-05,2]
[352396647,1739077839818,-500.0,8.972e-05,2]
[352396648,1739077839827,-500.0,8.972e-05,2]
[352396649,1739077839836,-500.0,8.972e-05,2]
[352396650,1739077839845,-500.0,8.972e-05,2]
[352396651,1739077839855,-500.0,8.972e-05,2]
[352396652,1739077839864,-500.0,8.972e-05,2]
[352396653,1739077839874,-500.0,8.972e-05,2]
[352396654,1739077839883,-500.0,8.972e-05,2]
[352396655,1739077839893,-320.04908494,8.972e-05,2]
[352396656,1739077839902,-500.0,8.972e-05,2]
[352396657,1739077839912,-522.91,8.972e-05,2]
[352396658,1739077839922,-680.75,8.972e-05,2]
[352396659,1739077839934,-206.69126319,8.972e-05,2]
[352396660,1739077839944,-500.0,8.972e-05,2]
[352396661,1739077839954,-548.68,8.972e-05,2]
[352396662,1739077839963,-500.0,8.972e-05,2]
[352396663,1739077839974,-500.0,8.972e-05,2]
[352396664,1739077839983,-842.99,8.972e-05,2]
[352396665,1739077839992,-148.28294956,8.972e-05,2]
[352396666,1739077840006,-351.71705044,8.972e-05,2]
[352396667,1739077840015,-500.0,8.972e-05,2]
[352396668,1739077840024,-500.0,8.972e-05,2]
[352396669,1739077840033,-500.0,8.972e-05,2]
[352396670,1739077840043,-500.0,8.972e-05,2]
[352396671,1739077840052,-500.0,8.972e-05,2]
[352396672,1739077840061,-500.0,8.972e-05,2]
[352396673,1739077840070,-140.22106288,8.972e-05,2]
[352396674,1739077840081,-359.77893712,8.972e-05,2]
[352396675,1739077840090,-500.0,8.972e-05,2]
[352396676,1739077840099,-500.0,8.972e-05,2]
[352396677,1739077840109,-500.0,8.972e-05,2]
[352396678,1739077840118,-500.0,8.972e-05,2]
[352396679,1739077840127,-500.0,8.972e-05,2]
[352396680,1739077840136,-137.99125642,8.972e-05,2]
[352396681,1739077840148,-362.00874358,8.972e-05,2]
[352396682,1739077840157,-38.76125641,8.972e-05,2]
[352396683,1739077840168,-330.18389829,8.972e-05,2]
[352396684,1739077840177,-500.0,8.972e-05,2]
[352396685,1739077840186,-143.31500615,8.972e-05,2]
[352396686,1739077840202,-356.68499385,8.972e-05,2]
[352396687,1739077840211,-500.0,8.972e-05,2]
[352396688,1739077840221,-500.0,8.972e-05,2]
[352396689,1739077840230,-642.86642086,8.972e-05,2]
[352396690,1739077840239,-500.0,8.972e-05,2]
[352396691,1739077840248,-500.0,8.972e-05,2]
[352396692,1739077840257,-500.0,8.972e-05,2]
[352396693,1739077840267,-500.0,8.972e-05,2]
[352396694,1739077840276,-500.0,8.972e-05,2]
[352396695,1739077840285,-500.0,8.972e-05,2]
[352396696,1739077840294,-500.0,8.972e-05,2]
[352396697,1739077840304,-500.0,8.972e-05,2]
[352396698,1739077840313,-500.0,8.972e-05,2]
[352396699,1739077840322,-165.02128529,8.972e-05,2]
[352396700,1739077840334,-259.71546597,8.972e-05,2]
[352396701,1739077840358,-75.26324874,8.972e-05,2]
[352396702,1739077840367,-563.49021518,8.972e-05,2]
[352396703,1739077840377,-345.33,8.972e-05,2]
[352396704,1739077840386,-500.0,8.972e-05,2]
[352396705,1739077840395,-500.0,8.972e-05,2]
[352396706,1739077840404,-933.41653608,8.972e-05,2]
[352396718,1739077842540,-513.61728012,8.835e-05,2]
[352396719,1739077842549,-102.49346392,8.972e-05,2]
[352396720,1739077842558,-1201.55988596,8.973e-05,2]
[352396721,1739077842569,-1765.7713395,8.973e-05,2]
[352396722,1739077842595,-4079.34492294,8.973e-05,2]
[352396723,1739077842606,-7044.0737302,8.973e-05,2]
[352396724,1739077842653,-57446.9802214,8.973e-05,2]
[352396725,1739077842663,-5000.0,8.973e-05,2]
[352396726,1739077842672,-255.0,9.04e-05,2]
[352396727,1739077842683,-500.0,9.109e-05,2]
[352396728,1739077842695,-500.0,9.109e-05,2]
[352396729,1739077842705,-500.0,9.109e-05,2]
[352396730,1739077842715,-500.0,9.109e-05,2]
[352396731,1739077842725,-500.0,9.109e-05,2]
[352396732,1739077842734,-500.0,9.109e-05,2]
[352396733,1739077842743,-500.0,9.109e-05,2]
[352396734,1739077842753,-500.0,9.109e-05,2]
[352396735,1739077842763,-500.0,9.109e-05,2]
[352396736,1739077842773,-500.0,9.109e-05,2]
[352396737,1739077842784,-500.0,9.109e-05,2]
[352396738,1739077842793,-500.0,9.109e-05,2]
[352396739,1739077842803,-522.91,9.109e-05,2]
[352396740,1739077842813,-680.75,9.109e-05,2]
[352396741,1739077842825,-500.0,9.109e-05,2]
[352396742,1739077842834,-548.68,9.109e-05,2]
[352396743,1739077842843,-500.0,9.109e-05,2]
[352396744,1739077842852,-500.0,9.109e-05,2]
[352396745,1739077842862,-842.99,9.109e-05,2]
[352396746,1739077842871,-500.0,9.109e-05,2]
[352396747,1739077842880,-500.0,9.109e-05,2]
[352396748,1739077842890,-500.0,9.109e-05,2]
[352396749,1739077842900,-500.0,9.109e-05,2]
[352396750,1739077842910,-500.0,9.109e-05,2]
[352396751,1739077842919,-500.0,9.109e-05,2]
[352396752,1739077842930,-500.0,9.109e-05,2]
[352396753,1739077842940,-500.0,9.109e-05,2]
[352396754,1739077842949,-275.38422278,9.109e-05,2]
[352396755,1739077842959,-500.0,9.109e-05,2]
[352396756,1739077842969,-500.0,9.109e-05,2]
[352396758,1739077842979,-500.0,9.109e-05,2]
[352396759,1739077842988,-500.0,9.109e-05,2]
[352396761,1739077842997,-500.0,9.109e-05,2]
[352396763,1739077843009,-500.0,9.109e-05,2]
[352396764,1739077843019,-500.0,9.109e-05,2]
[352396765,1739077843030,-500.0,9.109e-05,2]
[352396766,1739077843041,-500.0,9.109e-05,2]
[352396767,1739077843050,-500.0,9.109e-05,2]
[352396768,1739077843059,-500.0,9.109e-05,2]
[352396769,1739077843068,-500.0,9.109e-05,2]
[352396770,1739077843077,-500.0,9.109e-05,2]
[352396771,1739077843087,-500.0,9.109e-05,2]
[352396772,1739077843097,-500.0,9.109e-05,2]
[352396773,1739077843106,-500.0,9.109e-05,2]
[352396774,1739077843116,-500.0,9.109e-05,2]
[352396775,1739077843127,-500.0,9.109e-05,2]
[352396776,1739077843136,-500.0,9.109e-05,2]
[352396777,1739077843146,-1035.91,9.109e-05,2]
[352396778,1739077843156,-500.0,9.245e-05,2]
[352396779,1739077843166,-500.0,9.245e-05,2]
[352396780,1739077843175,-500.0,9.245e-05,2]
[352396781,1739077843185,-500.0,9.245e-05,2]
[352396782,1739077843195,-500.0,9.245e-05,2]
[352396783,1739077843204,-500.0,9.245e-05,2]
[352396784,1739077843214,-500.0,9.245e-05,2]
[352396785,1739077843223,-500.0,9.245e-05,2]
[352396786,1739077843234,-500.0,9.245e-05,2]
[352396787,1739077843244,-500.0,9.245e-05,2]
[352396788,1739077843254,-486.36257463,9.245e-05,2]
[352396789,1739077843264,-500.0,9.245e-05,2]
[352396790,1739077843274,-500.0,9.245e-05,2]
[352396791,1739077843283,-500.0,9.245e-05,2]
[352396792,1739077843293,-500.0,9.245e-05,2]
[352396793,1739077843302,-500.0,9.246e-05,2]
[352396794,1739077843312,-500.0,9.246e-05,2]
[352396795,1739077843321,-500.0,9.246e-05,2]
[352396796,1739077843331,-500.0,9.246e-05,2]
[352396797,1739077843340,-500.0,9.246e-05,2]
[352396798,1739077843350,-500.0,9.246e-05,2]
[352396799,1739077843359,-500.0,9.246e-05,2]
[352396800,1739077843369,-500.0,9.246e-05,2]
[352396801,1739077843378,-500.0,9.246e-05,2]
[352396802,1739077843387,-500.0,9.246e-05,2]
[352396803,1739077843396,-500.0,9.246e-05,2]
[352396804,1739077843405,-500.0,9.246e-05,2]
[352396805,1739077843414,-522.91,9.246e-05,2]
[352396806,1739077843423,-680.75,9.246e-05,2]
[352396807,1739077843432,-500.0,9.246e-05,2]
[352396808,1739077843441,-548.68,9.246e-05,2]
[352396809,1739077843450,-500.0,9.246e-05,2]
[352396810,1739077843459,-500.0,9.246e-05,2]
[352396811,1739077843468,-842.99,9.246e-05,2]
[352396812,1739077843477,-500.0,9.246e-05,2]
[352396813,1739077843486,-500.0,9.246e-05,2]
[352396814,1739077843495,-500.0,9.246e-05,2]
[352396815,1739077843503,-634.72,9.246e-05,2]
[352396816,1739077843513,-500.0,9.246e-05,2]
[352396817,1739077843522,-500.0,9.246e-05,2]
[352396818,1739077843531,-500.0,9.246e-05,2]
[352396819,1739077843540,-500.0,9.246e-05,2]
[352396820,1739077843549,-500.0,9.246e-05,2]
[352396821,1739077843558,-500.0,9.246e-05,2]
[352396822,1739077843568,-500.0,9.246e-05,2]
[352396823,1739077843577,-500.0,9.246e-05,2]
[352396824,1739077843586,-500.0,9.246e-05,2]
[352396825,1739077843595,-500.0,9.246e-05,2]
[352396826,1739077843604,-500.0,9.246e-05,2]
[352396827,1739077843613,-500.0,9.246e-05,2]
[352396828,1739077843622,-500.0,9.246e-05,2]
[352396829,1739077843631,-500.0,9.246e-05,2]
[352396830,1739077843639,-500.0,9.246e-05,2]
[352396831,1739077843648,-500.0,9.246e-05,2]
[352396832,1739077843658,-500.0,9.246e-05,2]
[352396833,1739077843667,-500.0,9.246e-05,2]
[352396834,1739077843676,-500.0,9.246e-05,2]
[352396835,1739077843685,-500.0,9.246e-05,2]
[352396836,1739077843694,-500.0,9.246e-05,2]
[352396837,1739077843702,-500.0,9.246e-05,2]
[352396838,1739077843711,-500.0,9.246e-05,2]
[352396839,1739077843720,-1035.91,9.246e-05,2]
[352396840,1739077843729,-1000.0,9.247e-05,2]
[352396841,1739077843738,-9980.0,9.3e-05,11]
[352396842,1739077843747,-500.0,9.382e-05,2]
[352396843,1739077843755,-500.0,9.383e-05,2]
[352396844,1739077843764,-500.0,9.383e-05,2]
[352396845,1739077843773,-500.0,9.383e-05,2]
[352396846,1739077843782,-500.0,9.383e-05,2]
[352396847,1739077843791,-500.0,9.383e-05,2]
[352396848,1739077843800,-500.0,9.383e-05,2]
[352396849,1739077843809,-500.0,9.383e-05,2]
[352396850,1739077843818,-500.0,9.383e-05,2]
[352396851,1739077843827,-500.0,9.383e-05,2]
[352396852,1739077843836,-475.39882021,9.383e-05,2]
[352396853,1739077843845,-500.0,9.383e-05,2]
[352396854,1739077843854,-500.0,9.383e-05,2]
[352396855,1739077843864,-522.91,9.383e-05,2]
[352396856,1739077843873,-680.75,9.383e-05,2]
[352396857,1739077843882,-500.0,9.383e-05,2]
[352396858,1739077843892,-548.68,9.383e-05,2]
[352396859,1739077843901,-500.0,9.383e-05,2]
[352396860,1739077843910,-500.0,9.383e-05,2]
[352396861,1739077843919,-842.99,9.383e-05,2]
[352396862,1739077843929,-500.0,9.383e-05,2]
[352396863,1739077843940,-500.0,9.383e-05,2]
[352396864,1739077843948,-500.0,9.383e-05,2]
[352396865,1739077843957,-500.0,9.383e-05,2]
[352396866,1739077843966,-500.0,9.383e-05,2]
[352396867,1739077843976,-500.0,9.383e-05,2]
[352396868,1739077843985,-500.0,9.383e-05,2]
[352396869,1739077843994,-500.0,9.383e-05,2]
[352396870,1739077844004,-500.0,9.383e-05,2]
[352396871,1739077844013,-285.74032523,9.383e-05,2]
[352396872,1739077844023,-500.0,9.383e-05,2]
[352396873,1739077844032,-398.00190584,9.383e-05,2]
[352396874,1739077844041,-500.0,9.383e-05,2]
[352396875,1739077844050,-500.0,9.383e-05,2]
[352396876,1739077844059,-500.0,9.383e-05,2]
[352396877,1739077844068,-500.0,9.383e-05,2]
[352396878,1739077844077,-500.0,9.383e-05,2]
[352396879,1739077844087,-500.0,9.383e-05,2]
[352396880,1739077844096,-500.0,9.383e-05,2]
[352396881,1739077844105,-500.0,9.383e-05,2]
[352396882,1739077844116,-500.0,9.383e-05,2]
[352396883,1739077844126,-500.0,9.383e-05,2]
[352396884,1739077844135,-500.0,9.383e-05,2]
[352396885,1739077844145,-500.0,9.383e-05,2]
[352396886,1739077844155,-500.0,9.383e-05,2]
[352396887,1739077844167,-500.0,9.383e-05,2]
[352396888,1739077844176,-1035.91,9.383e-05,2]
[352396889,1739077844185,-500.0,9.518e-05,2]
[352396890,1739077844194,-500.0,9.52e-05,2]
[352396891,1739077844203,-500.0,9.52e-05,2]
[352396892,1739077844212,-500.0,9.52e-05,2]
[352396893,1739077844221,-500.0,9.52e-05,2]
[352396894,1739077844231,-500.0,9.52e-05,2]
[352396895,1739077844240,-500.0,9.52e-05,2]
[352396896,1739077844249,-500.0,9.52e-05,2]
[352396897,1739077844258,-500.0,9.52e-05,2]
[352396898,1739077844268,-500.0,9.52e-05,2]
[352396899,1739077844278,-500.0,9.52e-05,2]
[352396900,1739077844288,-500.0,9.52e-05,2]
[352396901,1739077844297,-522.91,9.52e-05,2]
[352396902,1739077844308,-680.75,9.52e-05,2]
[352396903,1739077844317,-500.0,9.52e-05,2]
[352396904,1739077844329,-548.68,9.52e-05,2]
[352396905,1739077844338,-500.0,9.52e-05,2]
[352396906,1739077844347,-500.0,9.52e-05,2]
[352396907,1739077844358,-842.99,9.52e-05,2]
[352396908,1739077844368,-500.0,9.52e-05,2]
[352396909,1739077844378,-500.0,9.52e-05,2]
[352396910,1739077844387,-500.0,9.52e-05,2]
[352396911,1739077844397,-500.0,9.52e-05,2]
[352396912,1739077844407,-500.0,9.52e-05,2]
[352396913,1739077844416,-500.0,9.52e-05,2]
[352396914,1739077844425,-500.0,9.52e-05,2]
[352396915,1739077844434,-500.0,9.52e-05,2]
[352396916,1739077844444,-500.0,9.52e-05,2]
[352396917,1739077844453,-500.0,9.52e-05,2]
[352396918,1739077844462,-500.0,9.52e-05,2]
[352396919,1739077844471,-500.0,9.52e-05,2]
[352396920,1739077844480,-500.0,9.52e-05,2]
[352396921,1739077844489,-500.0,9.52e-05,2]
[352396922,1739077844500,-500.0,9.52e-05,2]
[352396923,1739077844510,-161.87771776,9.52e-05,2]
[352396924,1739077844520,-500.0,9.52e-05,2]
[352396925,1739077844531,-500.0,9.52e-05,2]
[352396926,1739077844541,-500.0,9.52e-05,2]
[352396927,1739077844550,-500.0,9.52e-05,2]
[352396928,1739077844559,-500.0,9.52e-05,2]
[352396929,1739077844568,-500.0,9.52e-05,2]
[352396930,1739077844578,-500.0,9.52e-05,2]
[352396931,1739077844587,-500.0,9.52e-05,2]
[352396932,1739077844596,-1035.91,9.52e-05,2]
[352396933,1739077844607,-500.0,9.569e-05,2]
[352396934,1739077844616,-150.0,9.636e-05,2]
[352396935,1739077844626,-500.0,9.657e-05,2]
[352396936,1739077844635,-500.0,9.657e-05,2]
[352396937,1739077844645,-500.0,9.657e-05,2]
[352396938,1739077844655,-500.0,9.657e-05,2]
[352396939,1739077844664,-176.23144993,9.657e-05,2]
[352396940,1739077844674,-500.0,9.657e-05,2]
[352396941,1739077844684,-500.0,9.657e-05,2]
[352396942,1739077844693,-500.0,9.657e-05,2]
[352396943,1739077844703,-500.0,9.657e-05,2]
[352396944,1739077844712,-500.0,9.657e-05,2]
[352396945,1739077844722,-500.0,9.657e-05,2]
[352396946,1739077844731,-522.91,9.657e-05,2]
[352396947,1739077844740,-680.75,9.657e-05,2]
[352396948,1739077844750,-500.0,9.657e-05,2]
[352396949,1739077844759,-548.68,9.657e-05,2]
[352396950,1739077844770,-500.0,9.657e-05,2]
[352396951,1739077844779,-500.0,9.657e-05,2]
[352396952,1739077844789,-842.99,9.657e-05,2]
[352396953,1739077844798,-500.0,9.657e-05,2]
[352396954,1739077844808,-500.0,9.657e-05,2]
[352396955,1739077844817,-500.0,9.657e-05,2]
[352396956,1739077844827,-500.0,9.657e-05,2]
[352396957,1739077844837,-500.0,9.657e-05,2]
[352396958,1739077844846,-500.0,9.657e-05,2]
[352396959,1739077844855,-500.0,9.657e-05,2]
[352396960,1739077844864,-500.0,9.657e-05,2]
[352396961,1739077844875,-500.0,9.657e-05,2]
[352396962,1739077844884,-500.0,9.657e-05,2]
[352396963,1739077844894,-500.0,9.657e-05,2]
[352396964,1739077844904,-500.0,9.657e-05,2]
[352396965,1739077844914,-500.0,9.657e-05,2]
[352396966,1739077844923,-135.92452484,9.657e-05,2]
[352396969,1739077845640,-1000.0,8.851e-05,2]
[352396970,1739077845649,-248.261092,9.657e-05,2]
[352396972,1739078573006,3000.0,0.0002,120]
[352396973,1739078582186,3000.0,0.0002,120]
[352396974,1739078590979,3000.0,0.0002,120]
[352396975,1739078599334,3000.0,0.0002,120]
[352396976,1739078606486,3000.0,0.0002,120]
[352396977,1739078615160,3000.0,0.0002,120]
[352396979,1739078631510,3125.56,0.0002,120]
[352397031,1739079031732,-774.90712446,8.219e-05,2]
[352397032,1739079031744,-5.94287554,8.219e-05,2]
[352397033,1739079031753,-300.0,8.834e-05,2]
[352397034,1739079031763,-348.18921796,8.835e-05,5]
[352397035,1739079031799,-18525.5367383,8.835e-05,5]
[352397036,1739079031808,-460.37667537,8.851e-05,2]
[352397037,1739079031817,-2500.0,8.851e-05,2]
[352397038,1739079031827,-3725.8205878,8.972e-05,2]
[352397039,1739079031918,-560.22976205,8.972e-05,2]
[352397040,1739079031928,-781.70080926,8.973e-05,2]
[352397041,1739079031948,-7157.13546805,8.973e-05,2]
[352397042,1739079032041,-1005.2,8.973e-05,2]
[352397043,1739079032052,-1568.00595115,8.973e-05,2]
[352397064,1739079037640,-4907.93253681,8.973e-05,2]
[352397065,1739079037702,-1528.18942139,8.973e-05,2]
[352397066,1739079037765,-32318.73101334,8.973e-05,2]
[352397067,1739079037775,-1549.74,9.12e-05,2]
[352397068,1739079037785,-158.6,9.235e-05,2]
[352397069,1739079037794,-1556.56,9.25e-05,2]
[352397070,1739079037803,-461.55,9.294e-05,2]
[352397071,1739079037812,-1000.0,9.303e-05,2]
[352397072,1739079037821,-500.0,9.304e-05,2]
[352397073,1739079037830,-349.9,9.621e-05,2]
[352397074,1739079037839,-420.0,9.717e-05,2]
[352397075,1739079037849,-431.7357272,9.993e-05,2]
[352397076,1739079037858,-500.0,9.999e-05,2]
[352397077,1739079037867,-500.0,9.999e-05,2]
[352397078,1739079037876,-500.0,9.999e-05,2]
[352397079,1739079037885,-500.0,9.999e-05,2]
[352397080,1739079037894,-500.0,9.999e-05,2]
[352397081,1739079037903,-500.0,9.999e-05,2]
[352397082,1739079037913,-500.0,9.999e-05,2]
[352397083,1739079037922,-503.67112841,9.999e-05,2]
[352397084,1739079037931,-500.0,9.999e-05,2]
[352397085,1739079037940,-500.0,9.999e-05,2]
[352397086,1739079037949,-500.0,9.999e-05,2]
[352397087,1739079037958,-500.0,9.999e-05,2]
[352397088,1739079037967,-500.0,9.999e-05,2]
[352397089,1739079037977,-500.0,9.999e-05,2]
[352397090,1739079037986,-500.0,9.999e-05,2]
[352397091,1739079037996,-500.0,9.999e-05,2]
[352397093,1739079038005,-500.0,9.999e-05,2]
[352397094,1739079038014,-500.0,9.999e-05,2]
[352397095,1739079038023,-500.0,9.999e-05,2]
[352397096,1739079038032,-500.0,9.999e-05,2]
[352397098,1739079038041,-500.0,9.999e-05,2]
[352397100,1739079038050,-500.0,9.999e-05,2]
[352397102,1739079038059,-597.11,9.999e-05,2]
[352397104,1739079038067,-500.0,9.999e-05,2]
[352397106,1739079038076,-500.0,9.999e-05,2]
[352397107,1739079038085,-500.0,9.999e-05,2]
[352397108,1739079038094,-500.0,9.999e-05,2]
[352397109,1739079038102,-500.0,9.999e-05,2]
[352397110,1739079038111,-500.0,9.999e-05,2]
[352397111,1739079038120,-500.0,9.999e-05,2]
[352397112,1739079038129,-500.0,9.999e-05,2]
[352397113,1739079038138,-349.91672388,9.999e-05,2]
[352397114,1739079038147,-500.0,9.999e-05,2]
[352397115,1739079038156,-500.0,9.999e-05,2]
[352397116,1739079038165,-500.0,9.999e-05,2]
[352397117,1739079038174,-500.0,9.999e-05,2]
[352397118,1739079038182,-500.0,9.999e-05,2]
[352397119,1739079038191,-500.0,9.999e-05,2]
[352397120,1739079038200,-500.0,9.999e-05,2]
[352397121,1739079038209,-500.0,9.999e-05,2]
[352397122,1739079038218,-500.0,9.999e-05,2]
[352397123,1739079038227,-500.0,9.999e-05,2]
[352397124,1739079038236,-500.0,9.999e-05,2]